fUST/lending_fUST_20241230
["ID","MTS","AMOUNT","RATE_DAILY","PERIOD"]
[347195129,1735558243373,-579.16276021,0.00013699,2]
[347195130,1735558243383,-579.16276021,0.00013699,2]
[347195131,1735558243392,-579.16276021,0.00013699,2]
[347195132,1735558243401,-579.16276021,0.00013699,2]
[347195134,1735558243412,-579.16276021,0.00013699,2]
[347195135,1735558243421,-579.16276021,0.00013699,2]
[347195136,1735558243431,-579.16276021,0.00013699,2]
[347195138,1735558243440,-579.16276021,0.00013699,2]
[347195139,1735558243450,-579.16276021,0.00013699,2]
[347195141,1735558243460,-579.16276021,0.00013699,2]
[347195142,1735558243469,-579.16276021,0.00013699,2]
[347195144,1735558243478,-579.16276021,0.00013699,2]
[347195145,1735558243488,-579.16276021,0.00013699,2]
[347195146,1735558243497,-567.23882103,0.00013699,2]
[347195147,1735558243507,-567.23882103,0.00013699,2]
[347195148,1735558243516,-567.23882103,0.00013699,2]
[347195149,1735558243525,-567.23882103,0.00013699,2]
[347195150,1735558243534,-567.23882103,0.00013699,2]
[347195152,1735558243544,-567.23882103,0.00013699,2]
[347195153,1735558243553,-567.23882103,0.00013699,2]
[347195154,1735558243566,-567.23882103,0.00013699,2]
[347195155,1735558243575,-567.23882103,0.00013699,2]
[347195156,1735558243584,-567.23882103,0.00013699,2]
[347195157,1735558243593,-567.23882103,0.00013699,2]
[347195158,1735558243603,-567.23882103,0.00013699,2]
[347195159,1735558243615,-567.23882103,0.00013699,2]
[347195160,1735558243624,-567.23882103,0.00013699,2]
[347195161,1735558243634,-567.23882103,0.00013699,2]
[347195162,1735558243644,-567.23882103,0.00013699,2]
[347195163,1735558243653,-567.23882103,0.00013699,2]
[347195164,1735558243663,-567.23882103,0.00013699,2]
[347195165,1735558243673,-567.23882103,0.00013699,2]
[347195166,1735558243682,-567.23882103,0.00013699,2]
[347195167,1735558243692,-567.23882103,0.00013699,2]
[347195168,1735558243701,-567.23882103,0.00013699,2]
[347195169,1735558243711,-567.23882103,0.00013699,2]
[347195170,1735558243721,-567.23882103,0.00013699,2]
[347195171,1735558243730,-567.23882103,0.00013699,2]
[347195172,1735558243739,-567.23882103,0.00013699,2]
[347195173,1735558243748,-567.23882103,0.00013699,2]
[347195174,1735558243758,-567.23882103,0.00013699,2]
[347195175,1735558243767,-567.23882103,0.00013699,2]
[347195177,1735558243776,-567.23882103,0.00013699,2]
[347195179,1735558243785,-567.23882103,0.00013699,2]
[347195181,1735558243794,-604.00430016,0.00013699,2]
[347195182,1735558243804,-604.00430016,0.00013699,2]
[347195183,1735558243816,-604.00430016,0.00013699,2]
[347195184,1735558243825,-604.00430015,0.00013699,2]
[347195185,1735558243835,-4333.89,0.00013699,2]
[347195186,1735558243845,-500.0,0.00013699,2]
[347195187,1735558243854,-1855.86,0.00013699,2]
[347195188,1735558243863,-500.0,0.000137,2]
[347195189,1735558243872,-500.0,0.00013701,2]
[347195190,1735558243882,-188.61829611,0.00013701,2]
[347195191,1735558243891,-985.3,0.00013701,2]
[347195192,1735558243900,-314.07873324,0.000138,2]
[347195193,1735558243909,-498.29849239,0.00013852,2]
[347195194,1735558243919,-710.82968705,0.00013922,2]
[347195195,1735558243928,-500.0,0.00013972,2]
[347195196,1735558243938,-500.0,0.00013972,2]
[347195197,1735558243947,-500.0,0.00013972,2]
[347195198,1735558243956,-400.0,0.00013973,2]
[347195199,1735558243966,-820.81,0.00013973,2]
[347195200,1735558243975,-5233.77,0.00013973,2]
[347195201,1735558243984,-902.05,0.00013973,2]
[347195202,1735558243993,-2501.83,0.00013973,2]
[347195203,1735558244002,-4333.89,0.00013973,2]
[347195204,1735558244011,-500.0,0.00013973,2]
[347195205,1735558244020,-1855.86,0.00013973,2]
[347195206,1735558244029,-500.0,0.00013974,2]
[347195207,1735558244038,-500.0,0.00013975,2]
[347195208,1735558244047,-985.3,0.00013975,2]
[347195209,1735558244058,-269.28923765,0.00014011,2]
[347195210,1735558244069,-500.0,0.00014246,2]
[347195211,1735558244082,-500.0,0.00014246,2]
[347195212,1735558244094,-500.0,0.00014246,2]
[347195213,1735558244106,-820.81,0.00014247,2]
[347195214,1735558244117,-5233.77,0.00014247,2]
[347195215,1735558244126,-902.05,0.00014247,2]
[347195216,1735558244136,-4333.89,0.00014247,2]
[347195217,1735558244145,-500.0,0.00014247,2]
[347195218,1735558244156,-1855.86,0.00014247,2]
[347195219,1735558244165,-500.0,0.00014248,2]
[347195220,1735558244175,-500.0,0.00014249,2]
[347195221,1735558244184,-985.3,0.00014249,2]
[347195222,1735558244193,-498.29849239,0.00014393,2]
[347195223,1735558244202,-500.0,0.0001452,2]
[347195224,1735558244211,-500.0,0.0001452,2]
[347195225,1735558244221,-500.0,0.0001452,2]
[347195226,1735558244297,-153.0,0.00014521,2]
[347195227,1735558244309,-820.81,0.00014521,2]
[347195228,1735558244319,-5233.77,0.00014521,2]
[347195229,1735558244329,-902.05,0.00014521,2]
[347195230,1735558244339,-2501.83,0.00014521,2]
[347195231,1735558244348,-4333.89,0.00014521,2]
[347195232,1735558244358,-500.0,0.00014521,2]
[347195233,1735558244367,-1855.86,0.00014521,2]
[347195234,1735558244376,-500.0,0.00014522,2]
[347195235,1735558244386,-985.3,0.00014523,2]
[347195236,1735558244395,-601.99541837,0.00014567,2]
[347195237,1735558244404,-500.65682149,0.00014567,2]
[347195238,1735558244413,-269.28923765,0.00014764,2]
[347195239,1735558244423,-526.05727885,0.00014773,2]
[347195240,1735558244432,-500.0,0.00014794,2]
[347195241,1735558244442,-500.0,0.00014794,2]
[347195242,1735558244451,-500.0,0.00014794,2]
[347195243,1735558244460,-820.81,0.00014795,2]
[347195244,1735558244470,-5233.77,0.00014795,2]
[347195245,1735558244479,-902.05,0.00014795,2]
[347195246,1735558244488,-4333.89,0.00014795,2]
[347195247,1735558244497,-500.0,0.00014795,2]
[347195248,1735558244507,-1855.86,0.00014795,2]
[347195249,1735558244516,-500.0,0.00014796,2]
[347195250,1735558244525,-985.3,0.00014797,2]
[347195251,1735558244534,-151.0,0.000148,2]
[347195252,1735558244543,-182.351012,0.000148,2]
[347195253,1735558244553,-182.351012,0.000148,2]
[347195254,1735558244564,-64778.93291387,0.000148,2]
[347195255,1735558244573,-64778.93291372,0.000148,2]
[347195256,1735558244582,-64778.93291372,0.000148,2]
[347195257,1735558244592,-64778.93291372,0.000148,2]
[347195258,1735558244601,-64778.93291372,0.000148,2]
[347195259,1735558244610,-64778.93291372,0.000148,2]
[347195260,1735558244620,-690.623,0.0001484,2]
[347195261,1735558244629,-587.0,0.00014847,2]
[347195262,1735558244638,-151.0,0.000149,2]
[347195263,1735558244647,-151.0,0.000149,2]
[347195264,1735558244656,-151.0,0.000149,2]
[347195265,1735558244665,-151.0,0.000149,2]
[347195266,1735558244674,-219.324067,0.000149,2]
[347195267,1735558244683,-219.324067,0.000149,2]
[347195268,1735558244692,-751.488954,0.000149,2]
[347195269,1735558244701,-751.488954,0.000149,2]
[347195270,1735558244710,-12675.68671913,0.00015037,2]
[347195271,1735558244869,-506.88225391,0.00012329,2]
[347195272,1735558244878,-500.0,0.00012604,2]
[347195273,1735558244888,-405.99915458,0.00012878,2]
[347195274,1735558244897,-2493.73659799,0.00015037,2]
[347195275,1735558244939,-1566.75,0.00015037,2]
[347195290,1735558246660,-498.29849239,0.00014934,2]
[347195291,1735558246669,-1191.76533266,0.00015037,2]
[347195298,1735558467375,500.0,0.00021552,120]
[347195312,1735559061362,1600.0,0.00024,120]
[347195313,1735559074916,800.0,0.00025,120]
[347195320,1735559148758,262.0,0.00025,120]
[347195321,1735559164918,1400.0,0.00025,120]
[347195384,1735559311445,-854.4674305,0.00011284,2]
[347195385,1735559311473,-584.81444604,0.00011398,2]
[347195386,1735559311516,-269.65298446,0.00011398,2]
[347195387,1735559311543,-300.0,0.00012326,2]
[347195388,1735559311570,-482.99,0.00012327,2]
[347195389,1735559311597,-494.65192691,0.00012327,2]
[347195390,1735559311624,-104.96198067,0.00012327,2]
[347195392,1735559336469,-1714.08766742,0.00012204,2]
[347195393,1735559336519,-1671.85709108,0.00012204,2]
[347195404,1735559361595,-1781.80656259,0.00012204,2]
[347195405,1735559361640,-1325.74408936,0.00012204,2]
[347195432,1735559386441,-1843.95757563,0.00012204,2]
[347195433,1735559386523,-712.64562534,0.00012204,2]
[347195434,1735559386552,-300.0,0.00012326,2]
[347195435,1735559386578,-384.4161877,0.00012327,2]
[347195436,1735559386603,-446.89576259,0.00012327,2]
[347195437,1735559386635,-36.78498046,0.00012327,2]
[347195438,1735559386661,-142.95695966,0.00012327,2]
[347195471,1735559431938,-300.0,0.00012203,2]
[347195472,1735559431947,-300.0,0.00012326,2]
[347195473,1735559431957,-357.04304034,0.00012327,2]
[347195474,1735559431966,-500.0,0.00012327,2]
[347195475,1735559431976,-500.0,0.00012327,2]
[347195476,1735559431985,-500.0,0.00012327,2]
[347195477,1735559431995,-500.0,0.00012327,2]
[347195478,1735559432004,-500.0,0.00012327,2]
[347195479,1735559432014,-500.0,0.00012327,2]
[347195480,1735559432023,-500.0,0.00012327,2]
[347195481,1735559432032,-264.04646976,0.00012327,2]
[347195482,1735559432042,-500.0,0.00012327,2]
[347195483,1735559432052,-796.81,0.00012327,2]
[347195484,1735559432062,-500.0,0.00012327,2]
[347195486,1735559432071,-225.28666485,0.00012327,2]
[347195491,1735559432108,-274.71333515,0.00012327,2]
[347195493,1735559432118,-1546.55,0.00012327,2]
[347195495,1735559432128,-500.0,0.00012327,2]
[347195497,1735559432137,-375.39857849,0.00012327,2]
[347195500,1735559432147,-500.0,0.00012327,2]
[347195503,1735559432156,-500.0,0.00012327,2]
[347195506,1735559432166,-500.0,0.00012327,2]
[347195508,1735559432175,-331.88,0.00012327,2]
[347195510,1735559432184,-500.0,0.00012327,2]
[347195512,1735559432192,-145.45814094,0.00012327,2]
[347195577,1735559438009,-300.0,0.00012081,2]
[347195578,1735559438020,-354.54185906,0.00012327,2]
[347195579,1735559438030,-3611.58,0.00012327,2]
[347195580,1735559438040,-346.67,0.00012327,2]
[347195581,1735559438049,-500.0,0.00012327,2]
[347195583,1735559438059,-405.1582431,0.00012327,2]
[347195585,1735559438068,-500.0,0.00012327,2]
[347195587,1735559438078,-365.06935405,0.00012328,2]
[347195589,1735559438086,-417.76680384,0.00012328,2]
[347195591,1735559438096,-500.93767852,0.00012328,2]
[347195593,1735559438106,-500.0,0.00012328,2]
[347195595,1735559438115,-500.0,0.00012328,2]
[347195596,1735559438124,-500.0,0.00012328,2]
[347195598,1735559438134,-500.88397465,0.00012328,2]
[347195599,1735559438144,-500.89940823,0.00012328,2]
[347195600,1735559438153,-496.37974095,0.00012328,2]
[347195601,1735559438162,-501.90084833,0.00012328,2]
[347195603,1735559438172,-500.0,0.00012328,2]
[347195605,1735559438181,-502.95489675,0.00012328,2]
[347195607,1735559438190,-500.0,0.00012328,2]
[347195608,1735559438200,-500.8406361,0.00012328,2]
[347195609,1735559438209,-500.0,0.00012328,2]
[347195610,1735559438218,-500.0,0.00012328,2]
[347195611,1735559438227,-500.0,0.00012328,2]
[347195612,1735559438237,-645.10167563,0.00012328,2]
[347195613,1735559438246,-500.0,0.00012328,2]
[347195614,1735559438256,-500.95652555,0.00012328,2]
[347195615,1735559438267,-501.90261125,0.00012328,2]
[347195616,1735559438277,-500.43843458,0.00012328,2]
[347195617,1735559438287,-500.0,0.00012328,2]
[347195618,1735559438296,-500.0,0.00012328,2]
[347195626,1735559438306,-500.31575429,0.00012328,2]
[347195627,1735559438404,-500.0,0.00012328,2]
[347195628,1735559438413,-500.93117297,0.00012328,2]
[347195629,1735559438423,-500.4765848,0.00012328,2]
[347195630,1735559438432,-500.98345046,0.00012328,2]
[347195631,1735559438442,-501.20344896,0.00012328,2]
[347195632,1735559438451,-500.0800814,0.00012328,2]
[347195633,1735559438461,-500.24294351,0.00012328,2]
[347195634,1735559438471,-643.42585848,0.00012328,2]
[347195635,1735559438480,-500.0,0.00012328,2]
[347195636,1735559438489,-500.86935964,0.00012328,2]
[347195637,1735559438499,-501.36039727,0.00012328,2]
[347195638,1735559438509,-500.0,0.00012328,2]
[347195639,1735559438521,-500.0,0.00012328,2]
[347195640,1735559438531,-500.0,0.00012328,2]
[347195641,1735559438540,-500.0,0.00012328,2]
[347195642,1735559438549,-503.94390834,0.00012328,2]
[347195643,1735559438559,-500.0,0.00012328,2]
[347195644,1735559438568,-500.0,0.00012328,2]
[347195645,1735559438578,-500.0,0.00012328,2]
[347195646,1735559438587,-500.32150387,0.00012328,2]
[347195647,1735559438597,-500.0,0.00012328,2]
[347195648,1735559438608,-500.0,0.00012328,2]
[347195649,1735559438617,-501.65111526,0.00012328,2]
[347195650,1735559438627,-500.0,0.00012328,2]
[347195651,1735559438636,-500.39211905,0.00012328,2]
[347195652,1735559438646,-550.83429209,0.00012328,2]
[347195653,1735559438656,-500.0,0.00012328,2]
[347195654,1735559438665,-500.0,0.00012328,2]
[347195655,1735559438674,-500.0,0.00012328,2]
[347195656,1735559438683,-228.04096205,0.00012328,2]
[347195657,1735559438693,-500.83749798,0.00012328,2]
[347195658,1735559438702,-619.04755111,0.00012328,2]
[347195659,1735559438712,-500.0,0.00012328,2]
[347195660,1735559438721,-500.64511689,0.00012328,2]
[347195661,1735559438731,-500.0,0.00012328,2]
[347195662,1735559438740,-502.14998847,0.00012328,2]
[347195663,1735559438750,-500.0,0.00012328,2]
[347195664,1735559438759,-500.0,0.00012328,2]
[347195665,1735559438769,-500.96648462,0.00012328,2]
[347195666,1735559438779,-500.0,0.00012328,2]
[347195667,1735559438788,-500.0,0.00012328,2]
[347195668,1735559438797,-238.58201739,0.00012328,2]
[347195669,1735559438807,-501.11752852,0.00012328,2]
[347195670,1735559438816,-500.0,0.00012328,2]
[347195671,1735559438826,-500.0,0.00012328,2]
[347195672,1735559438835,-500.0,0.00012328,2]
[347195673,1735559438844,-500.0,0.00012328,2]
[347195674,1735559438854,-500.0,0.00012328,2]
[347195675,1735559438863,-500.0,0.00012328,2]
[347195676,1735559438872,-500.0,0.00012328,2]
[347195677,1735559438882,-503.2018599,0.00012328,2]
[347195678,1735559438891,-500.0,0.00012328,2]
[347195679,1735559438900,-623.20011283,0.00012328,2]
[347195680,1735559438909,-500.0,0.00012328,2]
[347195681,1735559438919,-500.0,0.00012328,2]
[347195682,1735559438928,-502.51047285,0.00012328,2]
[347195683,1735559438938,-282.49108368,0.00012328,2]
[347195684,1735559438947,-500.0,0.00012328,2]
[347195685,1735559438957,-500.0,0.00012328,2]
[347195686,1735559438966,-478.04794181,0.00012328,2]
[347195687,1735559438976,-461.25273725,0.00012328,2]
[347195688,1735559438987,-500.0,0.00012328,2]
[347195689,1735559438996,-500.0,0.00012328,2]
[347195690,1735559439006,-500.0,0.00012328,2]
[347195691,1735559439017,-500.0,0.00012328,2]
[347195692,1735559439027,-500.0,0.00012328,2]
[347195693,1735559439038,-500.0,0.00012328,2]
[347195694,1735559439048,-778.59,0.00012328,2]
[347195695,1735559439057,-500.0,0.00012328,2]
[347195696,1735559439067,-1980.61,0.00012328,2]
[347195697,1735559439077,-1980.61,0.00012328,2]
[347195698,1735559439087,-500.0,0.00012328,2]
[347195699,1735559439096,-4840.73,0.00012328,2]
[347195700,1735559439106,-500.0,0.00012329,2]
[347195701,1735559439116,-500.0,0.00012329,2]
[347195702,1735559439125,-500.0,0.00012329,2]
[347195703,1735559439134,-500.0,0.00012329,2]
[347195704,1735559439144,-500.0,0.00012329,2]
[347195705,1735559439153,-500.0,0.00012329,2]
[347195706,1735559439163,-495.09089011,0.00012329,2]
[347195707,1735559439172,-500.0,0.00012329,2]
[347195708,1735559439181,-500.0,0.00012329,2]
[347195709,1735559439190,-500.0,0.00012329,2]
[347195710,1735559439200,-841.51,0.00012329,2]
[347195711,1735559439209,-500.0,0.00012601,2]
[347195712,1735559439218,-796.81,0.00012601,2]
[347195713,1735559439227,-500.0,0.00012601,2]
[347195714,1735559439237,-500.0,0.00012601,2]
[347195715,1735559439246,-1546.55,0.00012601,2]
[347195716,1735559439255,-500.0,0.00012601,2]
[347195717,1735559439265,-500.0,0.00012601,2]
[347195718,1735559439275,-3611.58,0.00012601,2]
[347195719,1735559439284,-368.80676656,0.00012602,2]
[347195720,1735559439293,-500.0,0.00012602,2]
[347195721,1735559439302,-514.27,0.00012602,2]
[347195722,1735559439312,-500.0,0.00012602,2]
[347195723,1735559439321,-401.92855892,0.00012602,2]
[347195724,1735559439330,-778.59,0.00012602,2]
[347195725,1735559439339,-500.0,0.00012602,2]
[347195726,1735559439349,-500.0,0.00012602,2]
[347195727,1735559439359,-4840.73,0.00012602,2]
[347195728,1735559439368,-500.0,0.00012603,2]
[347195729,1735559439377,-500.0,0.00012603,2]
[347195730,1735559439387,-188.61829611,0.00012603,2]
[347195731,1735559439396,-841.51,0.00012603,2]
[347195732,1735559439406,-500.0,0.00012875,2]
[347195733,1735559439415,-796.81,0.00012875,2]
[347195734,1735559439424,-500.0,0.00012875,2]
[347195735,1735559439433,-500.0,0.00012875,2]
[347195736,1735559439443,-1546.55,0.00012875,2]
[347195737,1735559439453,-1980.61,0.00012875,2]
[347195738,1735559439462,-500.0,0.00012875,2]
[347195739,1735559439472,-500.0,0.00012875,2]
[347195740,1735559439481,-3611.58,0.00012875,2]
[347195741,1735559439490,-500.0,0.00012876,2]
[347195743,1735559439499,-336.51,0.00012876,2]
[347195745,1735559439509,-778.59,0.00012876,2]
[347195747,1735559439520,-572.07,0.00012876,2]
[347195748,1735559439529,-4840.73,0.00012876,2]
[347195750,1735559439538,-500.0,0.00012877,2]
[347195752,1735559439548,-500.0,0.00012877,2]
[347195754,1735559439558,-841.51,0.00012877,2]
[347195755,1735559439567,-288.05197382,0.000129,2]
[347195756,1735559439576,-501.43933197,0.00012925,2]
[347195758,1735559439585,-287.0,0.00013,2]
[347195760,1735559439595,-500.0,0.00013018,2]
[347195761,1735559439604,-267.05932085,0.00013072,2]
[347195763,1735559439613,-228.9851098,0.00013072,2]
[347195764,1735559439623,-152.02646734,0.00013072,2]
[347195765,1735559439633,-266.05853263,0.00013072,2]
[347195766,1735559439642,-170.02960163,0.00013137,2]
[347195767,1735559439652,-219.03813387,0.00013137,2]
[347195768,1735559439662,-152.02646734,0.00013137,2]
[347195769,1735559439671,-501.50112158,0.00013142,2]
[347195770,1735559439680,-519.32,0.00013149,2]
[347195771,1735559439689,-796.81,0.00013149,2]
[347195772,1735559439698,-500.0,0.00013149,2]
[347195773,1735559439708,-500.0,0.00013149,2]
[347195775,1735559439718,-1546.55,0.00013149,2]
[347195777,1735559439727,-500.0,0.00013149,2]
[347195779,1735559439737,-500.0,0.00013149,2]
[347195780,1735559439746,-3611.58,0.00013149,2]
[347195781,1735559439756,-778.59,0.0001315,2]
[347195783,1735559439765,-1980.61,0.0001315,2]
[347195784,1735559439775,-4840.73,0.0001315,2]
[347195785,1735559439784,-500.0,0.00013151,2]
[347195786,1735559439794,-500.0,0.00013151,2]
[347195787,1735559439804,-841.51,0.00013151,2]
[347195788,1735559439813,-500.0,0.00013165,2]
[347195789,1735559439822,-166.04186831,0.00013165,2]
[347195790,1735559439831,-288.05197378,0.00013324,2]
[347195791,1735559439840,-796.81,0.00013423,2]
[347195792,1735559439849,-500.0,0.00013423,2]
[347195793,1735559439858,-500.0,0.00013423,2]
[347195794,1735559439868,-1546.55,0.00013423,2]
[347195795,1735559439878,-500.0,0.00013423,2]
[347195796,1735559439887,-500.0,0.00013423,2]
[347195797,1735559439897,-3611.58,0.00013423,2]
[347195798,1735559439906,-778.59,0.00013424,2]
[347195799,1735559439915,-4840.73,0.00013424,2]
[347195800,1735559439924,-500.0,0.00013425,2]
[347195801,1735559439933,-841.51,0.00013425,2]
[347195802,1735559439944,-420.0,0.00013527,2]
[347195803,1735559439954,-710.82968705,0.00013566,2]
[347195804,1735559439963,-528.1003853,0.00013598,2]
[347195805,1735559439973,-796.81,0.00013697,2]
[347195806,1735559439982,-500.0,0.00013697,2]
[347195807,1735559439991,-500.0,0.00013697,2]
[347195808,1735559440000,-1546.55,0.00013697,2]
[347195809,1735559440010,-1980.61,0.00013697,2]
[347195810,1735559440019,-500.0,0.00013697,2]
[347195811,1735559440028,-500.0,0.00013697,2]
[347195812,1735559440037,-3611.58,0.00013697,2]
[347195813,1735559440046,-500.0,0.00013698,2]
[347195814,1735559440056,-500.0,0.00013698,2]
[347195815,1735559440066,-501.34918812,0.00013698,2]
[347195816,1735559440075,-1000.0,0.00013698,2]
[347195817,1735559440084,-1107.5649309,0.00013698,2]
[347195818,1735559440094,-1000.0,0.00013698,2]
[347195819,1735559440103,-1000.0,0.00013698,2]
[347195820,1735559440113,-1112.81732426,0.00013698,2]
[347195821,1735559440122,-778.59,0.00013698,2]
[347195822,1735559440132,-500.0,0.00013698,2]
[347195823,1735559440141,-500.0,0.00013698,2]
[347195824,1735559440151,-1980.61,0.00013698,2]
[347195825,1735559440160,-500.0,0.00013698,2]
[347195826,1735559440170,-500.0,0.00013698,2]
[347195827,1735559440179,-500.0,0.00013698,2]
[347195828,1735559440189,-500.0,0.00013698,2]
[347195829,1735559440198,-500.0,0.00013698,2]
[347195830,1735559440207,-552.59579627,0.00013698,2]
[347195831,1735559440217,-4840.73,0.00013698,2]
[347195832,1735559440226,-2331.8952588,0.00013699,2]
[347195833,1735559440235,-2439.747872,0.00013699,2]
[347195834,1735559440244,-262.42338212,0.00013699,2]
[347195835,1735559440253,-579.16276021,0.00013699,2]
[347195836,1735559440262,-579.16276021,0.00013699,2]
[347195837,1735559440272,-579.16276021,0.00013699,2]
[347195838,1735559440281,-579.16276021,0.00013699,2]
[347195839,1735559440291,-579.16276021,0.00013699,2]
[347195840,1735559440300,-579.16276021,0.00013699,2]
[347195841,1735559440309,-579.16276021,0.00013699,2]
[347195842,1735559440319,-579.16276021,0.00013699,2]
[347195843,1735559440328,-579.16276021,0.00013699,2]
[347195844,1735559440338,-579.16276021,0.00013699,2]
[347195845,1735559440347,-579.16276021,0.00013699,2]
[347195846,1735559440357,-579.16276021,0.00013699,2]
[347195847,1735559440367,-579.16276021,0.00013699,2]
[347195848,1735559440376,-579.16276021,0.00013699,2]
[347195849,1735559440386,-579.16276021,0.00013699,2]
[347195850,1735559440395,-579.16276021,0.00013699,2]
[347195851,1735559440404,-579.16276021,0.00013699,2]
[347195852,1735559440414,-579.16276021,0.00013699,2]
[347195853,1735559440423,-579.16276021,0.00013699,2]
[347195854,1735559440433,-579.16276021,0.00013699,2]
[347195855,1735559440442,-579.16276021,0.00013699,2]
[347195856,1735559440451,-579.16276021,0.00013699,2]
[347195857,1735559440461,-579.16276021,0.00013699,2]
[347195858,1735559440471,-579.16276021,0.00013699,2]
[347195859,1735559440481,-579.16276021,0.00013699,2]
[347195860,1735559440491,-579.16276021,0.00013699,2]
[347195861,1735559440500,-579.16276021,0.00013699,2]
[347195862,1735559440587,-579.16276021,0.00013699,2]
[347195863,1735559440598,-579.16276021,0.00013699,2]
[347195864,1735559440607,-579.16276021,0.00013699,2]
[347195865,1735559440617,-579.16276021,0.00013699,2]
[347195866,1735559440626,-579.16276021,0.00013699,2]
[347195867,1735559440636,-579.16276021,0.00013699,2]
[347195868,1735559440645,-579.16276021,0.00013699,2]
[347195869,1735559440654,-579.16276021,0.00013699,2]
[347195870,1735559440664,-579.16276021,0.00013699,2]
[347195871,1735559440673,-579.16276021,0.00013699,2]
[347195872,1735559440682,-579.16276021,0.00013699,2]
[347195873,1735559440691,-579.16276021,0.00013699,2]
[347195874,1735559440701,-579.16276021,0.00013699,2]
[347195875,1735559440710,-579.16276021,0.00013699,2]
[347195876,1735559440719,-579.16276021,0.00013699,2]
[347195877,1735559440728,-579.16276021,0.00013699,2]
[347195878,1735559440737,-579.16276021,0.00013699,2]
[347195879,1735559440747,-579.16276021,0.00013699,2]
[347195880,1735559440757,-579.16276021,0.00013699,2]
[347195881,1735559440766,-579.16276021,0.00013699,2]
[347195882,1735559440776,-579.16276021,0.00013699,2]
[347195883,1735559440786,-579.16276021,0.00013699,2]
[347195884,1735559440796,-579.16276021,0.00013699,2]
[347195885,1735559440805,-579.16276021,0.00013699,2]
[347195886,1735559440815,-579.16276021,0.00013699,2]
[347195887,1735559440824,-579.16276021,0.00013699,2]
[347195888,1735559440833,-579.16276021,0.00013699,2]
[347195889,1735559440843,-579.16276021,0.00013699,2]
[347195890,1735559440852,-579.16276021,0.00013699,2]
[347195891,1735559440862,-579.16276021,0.00013699,2]
[347195892,1735559440871,-579.16276021,0.00013699,2]
[347195893,1735559440880,-579.16276021,0.00013699,2]
[347195894,1735559440890,-579.16276021,0.00013699,2]
[347195895,1735559440899,-573.37113261,0.00013699,2]
[347195896,1735559440909,-573.37113261,0.00013699,2]
[347195897,1735559440918,-573.37113261,0.00013699,2]
[347195898,1735559440928,-573.37113261,0.00013699,2]
[347195899,1735559440937,-573.37113261,0.00013699,2]
[347195900,1735559440947,-573.37113261,0.00013699,2]
[347195901,1735559440957,-573.37113261,0.00013699,2]
[347195902,1735559440967,-573.37113261,0.00013699,2]
[347195903,1735559440976,-573.37113261,0.00013699,2]
[347195904,1735559440986,-573.37113261,0.00013699,2]
[347195905,1735559440995,-573.37113261,0.00013699,2]
[347195906,1735559441005,-573.37113261,0.00013699,2]
[347195907,1735559441015,-573.37113261,0.00013699,2]
[347195908,1735559441027,-573.37113261,0.00013699,2]
[347195909,1735559441037,-573.37113261,0.00013699,2]
[347195910,1735559441047,-573.37113261,0.00013699,2]
[347195911,1735559441056,-573.37113261,0.00013699,2]
[347195912,1735559441066,-573.37113261,0.00013699,2]
[347195913,1735559441075,-573.37113261,0.00013699,2]
[347195914,1735559441084,-573.37113261,0.00013699,2]
[347195915,1735559441093,-573.37113261,0.00013699,2]
[347195916,1735559441103,-573.37113261,0.00013699,2]
[347195917,1735559441112,-573.37113261,0.00013699,2]
[347195918,1735559441121,-573.37113261,0.00013699,2]